Cogmind - Beta 14 @@@ ROGUE MODE // 2025.03.30 @ 14:54:14 Player: Tyrockal Result: Destroyed by P-60 Hacker with Shock Rifle Performance ------------- Evolutions (3) 1500 Regions Visited (6) 1200 Robots Destroyed (5) 25 Value Destroyed (114) 114 Prototype IDs (6) 120 Alien Tech Used (0) 0 Bonus (28) 28 TOTAL SCORE: 2987 Bonus ------- Follower Combat Kills 28 Cogmind --------- Core Integrity 0/700 Matter 290/300 Energy 84/100 System Corruption 13% Temperature Cool (0) Movement Core (150) Ox2 Location -7/Factory Parts ------- > --- POWER (1) -------- (None) > --- PROPULSION (5) --- (None) > --- UTILITY (5) ------ (None) > --- WEAPON (2) ------- Proton Missile Launcher > --- INVENTORY (5) ---- Nuclear Core Sensor Array Improved Light Armor Plating Improved Light Armor Plating Improved EM Pulse Cannon Peak State ------------ > --- POWER ------------ Light Deuterium Engine > --- PROPULSION ------- Flight Unit VTOL Module VTOL Module Cesium-ion Thruster > --- UTILITY ---------- Small Storage Unit Experimental Sensor Array Improved Signal Interpreter Propulsion Shielding Improved Light Armor Plating > --- WEAPON ----------- Advanced Beam Rifle Precision Assault Rifle > --- INVENTORY -------- Nuclear Core Small Storage Unit Advanced Weight Redist. System Sensor Array Improved Light Armor Plating Advanced Beam Rifle [Rating: 38] Favorites ----------- Power Ion Engine Engine Ion Engine Power Core Nuclear Core Propulsion Cesium-ion Thruster Treads Light Treads Leg Aluminum Leg Flight Unit Cesium-ion Thruster Utility Small Storage Unit Device Experimental Sensor Array Storage Small Storage Unit Processor Improved Signal Interpreter Protection Propulsion Shielding Weapon Small Laser Energy Gun Small Laser Energy Cannon Advanced Beam Cannon Ballistic Gun Precision Assault Rifle Launcher Proton Missile Launcher Build | -11 -10 -10 -9 -9 -8 -7 ------- Run | Yrd Mat Min Mat Min Mat Fac Slots Evolved 6 | . . . 2 . 2 2 Power . | . . . . . . . Propulsion 3 | . . . 2 . . 1 Utility 3 | . . . . . 2 1 Weapon . | . . . . . . . Parts Attached 53 | 8 9 . 13 4 10 9 Power 5 | 1 . . . 1 3 . Engine 4 | 1 . . . 1 2 . Core 1 | . . . . . 1 . Reactor . | . . . . . . . Propulsion 22 | 4 4 . 9 2 1 2 Treads 2 | 2 . . . . . . Leg 5 | 2 2 . . . . 1 Wheel . | . . . . . . . Hover . | . . . . . . . Flight 15 | . 2 . 9 2 1 1 Utility 10 | 1 1 . . 1 5 2 Device 3 | . 1 . . 1 . 1 Storage 1 | 1 . . . . . . Processor 1 | . . . . . 1 . Hackware . | . . . . . . . Protection 5 | . . . . . 4 1 Artifact . | . . . . . . . Weapon 16 | 2 4 . 4 . 1 5 Energy Gun 11 | 2 2 . 4 . 1 2 Energy Cannon 3 | . 2 . . . . 1 Ballistic Gun 1 | . . . . . . 1 Ballistic Cannon . | . . . . . . . Launcher 1 | . . . . . . 1 Special Weapon . | . . . . . . . Impact Weapon . | . . . . . . . Slashing Weapon . | . . . . . . . Piercing Weapon . | . . . . . . . Special Melee Weapon . | . . . . . . . Unidentified Prototypes 6 | . 1 . 2 1 1 1 Parts Lost 14 | . 1 . . 2 1 10 Power 1 | . . . . . . 1 Propulsion 8 | . . . . 2 1 5 Utility 4 | . . . . . . 4 Weapon 1 | . 1 . . . . . Highest Loss Streak 7 | . 1 . . 2 1 7 To Critical Strikes . | . . . . . . . Average Slot Usage (%) 83 | . 86 100 88 98 89 52 Engine 10 | . 14 14 11 11 9 5 Leg 8 | . 26 28 . . . . Flight 24 | . 1 . 42 42 35 20 Device 6 | . 1 14 11 11 8 5 Storage 10 | . 14 14 11 11 9 4 Processor 1 | . . . . . . 6 Protection 5 | . . . . . 17 6 Energy Gun 13 | . 26 14 2 22 9 . Energy Cannon 2 | . 1 14 9 . . . Peak Build Rating 38 | 6 12 11 24 31 36 38 Average Rating 18 | 3 6 11 16 23 31 20 On Entrance 15 | . 6 11 11 24 31 25 Naked Turns 49 | . . . . . . 49 Heaviest Build 18 | 12 18 18 15 17 17 17 Greatest Support 20 | 20 20 20 20 20 18 20 Greatest Overweight (x) 2 | . 2 . 2 1 1 2 Average Overweight (x) . | . . . . . . . Largest Inventory Capacity 8 | 8 8 8 8 8 8 8 Average Capacity 7 | 6 8 8 8 8 8 7 Most Carried 8 | 1 8 8 8 8 8 8 Average Carried 6 | . 5 8 7 7 7 6 Final Capacity 8 | 8 8 8 8 8 8 5 Final Carried 8 | 1 8 8 8 8 7 5 Class Distribution -------------------- 58% | Sprinter 41% | Mutant Dominant Class ---------------- Mutant | -10/Materials Mutant | -10/Mines Sprinter | -9/Materials Sprinter | -9/Mines Sprinter | -8/Materials Sprinter | -7/Factory Resources | -11 -10 -10 -9 -9 -8 -7 ----------- Run | Yrd Mat Min Mat Min Mat Fac Matter Collected 668 | 136 13 163 99 119 . 138 Remotely . | . . . . . . . Salvage Created 142 | . 13 . 99 30 . . Parts 11 | . 3 . 5 3 . . Haulers Intercepted . | . . . . . . . Recyclers Shooed . | . . . . . . . Parts Field Recycled . | . . . . . . . Retrieved Matter . | . . . . . . . Parts Self-Destructed . | . . . . . . . Prevented . | . . . . . . . Kills | -11 -10 -10 -9 -9 -8 -7 ------- Run | Yrd Mat Min Mat Min Mat Fac Combat Hostiles Destroyed 4 | . . . 2 2 . . Guns 4 | . . . 2 2 . . Classes Destroyed 3 | . 1 . 1 1 . . Watcher 1 | . 1 . . . . . Swarmer 2 | . . . . 2 . . Grunt 2 | . . . 2 . . . Best Kill Streak 2 | . 1 . 2 1 . . Combat Bots Only 2 | . . . 2 1 . . Max Kills in Single Turn 1 | . 1 . 1 1 . . Gunslinging . | . . . . . . . Exploded . | . . . . . . . Melee . | . . . . . . . Uniques/NPCs Destroyed . | . . . . . . . Combat | -11 -10 -10 -9 -9 -8 -7 -------- Run | Yrd Mat Min Mat Min Mat Fac Hostile Shots Fired 181 | . 4 . 12 38 13 114 Missed 74 | . 2 . 4 18 7 43 Damage Taken 1576 | . 27 . 101 230 76 1142 Core 851 | . . . 29 94 17 711 Absorbed by Shields . | . . . . . . . Redirected to Shielding 43 | . . . . . . 43 Regen/Repaired (Parts) 8 | . . . 8 . . . Core Remaining (%) 91 | 100 . 100 . 69 96 . Volleys Fired 12 | . 2 . 4 6 . . Largest 2 | . 2 . 2 2 . . Hottest 133 | . 133 . 122 122 . . Shots Fired 24 | . 4 . 8 12 . . Gun 23 | . 3 . 8 12 . . Cannon 1 | . 1 . . . . . Launcher . | . . . . . . . Special . | . . . . . . . Kinetic . | . . . . . . . Thermal 24 | . 4 . 8 12 . . Explosive . | . . . . . . . Electromagnetic . | . . . . . . . Robot Hit Streak 5 | . 2 . 4 5 . . Robot Miss Streak 6 | . 6 . 1 3 . . Penetration Max . | . . . . . . . Secondary Targets 1 | . . . 1 . . . Max Gunslinging Chain 1 | . . . 1 . . . Shots Hit Robots 14 | . 3 . 7 4 . . Core Hits 8 | . 1 . 2 2 . 3 Critical Kills . | . . . . . . . Critical Parts Destroyed . | . . . . . . . Critical Strikes . | . . . . . . . Melee Attacks . | . . . . . . . Impact . | . . . . . . . Slashing . | . . . . . . . Piercing . | . . . . . . . Sneak Attacks . | . . . . . . . Combat Hostiles . | . . . . . . . Follow-up Attacks . | . . . . . . . Damage Inflicted 300 | . 42 . 120 91 . 47 Guns 221 | . 21 . 120 80 . . Cannons 21 | . 21 . . . . . Explosions . | . . . . . . . Melee . | . . . . . . . Ramming 58 | . . . . 11 . 47 Kinetic . | . . . . . . . Thermal 242 | . 42 . 120 80 . . Explosive . | . . . . . . . Electromagnetic . | . . . . . . . Impact . | . . . . . . . Slashing . | . . . . . . . Piercing . | . . . . . . . Highest Corruption 12 | . . . . . . 12 Average Corruption 8 | . . . . . . 8 Corruption Purged . | . . . . . . . Corruption Blocked . | . . . . . . . Effects 4 | . . . . . . 4 Message Errors 1 | . . . . . . 1 Matter Fused 1 | . . . . . . 1 Heat Flow Errors 1 | . . . . . . 1 Misdirections 1 | . . . . . . 1 Overload Shots . | . . . . . . . Overflow Damage . | . . . . . . . Projectiles . | . . . . . . . Explosions . | . . . . . . . Melee . | . . . . . . . Knockbacks 1 | . . . . . . 1 Impact 1 | . . . . . . 1 Kinetic . | . . . . . . . Secondary . | . . . . . . . Self-Inflicted Damage 19 | . . . . 5 . 14 Shots . | . . . . . . . Rammed 14 | . . . . 2 . 12 Targets Rammed 20 | . . . . 2 . 18 Kicked 6 | . . . . . . 6 Crushed . | . . . . . . . Highest Temperature 290 | . 72 . 290 206 1 80 Average Temperature 111 | . 31 . 210 93 1 46 Received Heat Transfer 447 | . 15 . 54 99 18 261 Effects 3 | . . . 3 . . . Interference 3 | . . . 3 . . . Siege Activations . | . . . . . . . Robots Corrupted . | . . . . . . . Combat Hostiles . | . . . . . . . Parts Fried . | . . . . . . . Impact Corruptions . | . . . . . . . Robots Melted . | . . . . . . . Combat Hostiles . | . . . . . . . Parts Melted 1 | . . . . 1 . . Heat Transferred 457 | . 87 . 222 148 . . Parts Sabotaged . | . . . . . . . Parts Stolen . | . . . . . . . Parts Stripped . | . . . . . . . Power Chain Reactions . | . . . . . . . Alert | -11 -10 -10 -9 -9 -8 -7 ------- Run | Yrd Mat Min Mat Min Mat Fac Peak Influence 306 | . 15 5 100 306 133 233 Initial 118 | . . 5 1 39 118 56 Average 72 | . 8 5 21 218 81 150 Maximum Alert Level 1 | . . . . 1 . 1 Low Security (%) 88 | 100 100 100 100 50 100 60 Level 1 11 | . . . . 50 . 39 Level 2 . | . . . . . . . Level 3 . | . . . . . . . Level 4 . | . . . . . . . Level 5 . | . . . . . . . High Security . | . . . . . . . Max Security . | . . . . . . . Squads Dispatched 5 | . . . . . 1 4 Investigation 1 | . . . . . . 1 Extermination 1 | . . . . . . 1 Reinforcement 3 | . . . . . 1 2 Assault . | . . . . . . . Garrison . | . . . . . . . Intercept . | . . . . . . . Searches Triggered . | . . . . . . . Construction Impeded . | . . . . . . . Haulers Reinforced . | . . . . . . . Active Scanning Responses . | . . . . . . . Cargo Convoy Interrupts . | . . . . . . . Stealth | -11 -10 -10 -9 -9 -8 -7 --------- Run | Yrd Mat Min Mat Min Mat Fac Distress Signals 4 | . . . 3 . . 1 Communications Jammed . | . . . . . . . Distress Signals . | . . . . . . . Times Spotted 70 | . 9 . 14 15 13 19 Peak Tracking Total 11 | . 5 . 11 5 10 8 Tactical Retreats 10 | . . . 1 3 2 4 Traps | -11 -10 -10 -9 -9 -8 -7 ------- Run | Yrd Mat Min Mat Min Mat Fac Traps Triggered 1 | . . . . . . 1 Indirectly . | . . . . . . . Trap Hack Attempts . | . . . . . . . Triggered . | . . . . . . . Disarmed . | . . . . . . . Reprogrammed . | . . . . . . . Reused . | . . . . . . . Traps Extracted . | . . . . . . . Installed . | . . . . . . . Triggered . | . . . . . . . Machines | -11 -10 -10 -9 -9 -8 -7 ---------- Run | Yrd Mat Min Mat Min Mat Fac Machines Disabled 1 | . . . . 1 . . Max in Single Turn 1 | . . . . 1 . . Machines Repaired . | . . . . . . . Machines Dismantled . | . . . . . . . Machines Sabotaged . | . . . . . . . Overloaded Fab Kills . | . . . . . . . Hacking | -11 -10 -10 -9 -9 -8 -7 --------- Run | Yrd Mat Min Mat Min Mat Fac Machines Accessed 3 | . 1 . 1 . . 1 Terminals . | . . . . . . . Fabricators . | . . . . . . . Repair Stations 1 | . . . 1 . . . Recycling Units 1 | . 1 . . . . . Scanalyzers 1 | . . . . . . 1 Garrison Access . | . . . . . . . Total Hacks 7 | . 2 . 2 . . 3 Successful 5 | . 1 . 2 . . 2 Failed 2 | . 1 . . . . 1 Catastrophic 1 | . . . . . . 1 Database Lockouts . | . . . . . . . Manual . | . . . . . . . Terminals . | . . . . . . . Fabricators . | . . . . . . . Repair Stations 2 | . . . 2 . . . Recycling Units 2 | . 2 . . . . . Scanalyzers 3 | . . . . . . 3 Garrison Access . | . . . . . . . Terminal Hacks . | . . . . . . . Fabricator Hacks . | . . . . . . . Repair Station Hacks 2 | . . . 2 . . . Scan Component 1 | . . . 1 . . . Repair 1 | . . . 1 . . . Recycling Unit Hacks 1 | . 1 . . . . . Recycle Component 1 | . 1 . . . . . Scanalyzer 2 | . . . . . . 2 Insert Component 1 | . . . . . . 1 Analyze 1 | . . . . . . 1 Garrison Access Hacks . | . . . . . . . Unauthorized Hacks . | . . . . . . . Terminals . | . . . . . . . Fabricators . | . . . . . . . Repair Stations . | . . . . . . . Recycling Units . | . . . . . . . Scanalyzers . | . . . . . . . Garrison Access . | . . . . . . . Data Cores Recovered . | . . . . . . . Used . | . . . . . . . Hacking Detections 2 | . 1 . . . . 1 Full Trace Events 1 | . . . . . . 1 Feedback Events . | . . . . . . . Feedback Blocked . | . . . . . . . Robot Schematics Acquired . | . . . . . . . Robots Built . | . . . . . . . Authchips . | . . . . . . . Time . | . . . . . . . Total Robot Build Rating . | . . . . . . . Part Schematics Acquired 1 | . . . . . . 1 Parts Built . | . . . . . . . Authchips . | . . . . . . . Time . | . . . . . . . Total Part Build Rating . | . . . . . . . Parts Repaired 1 | . . . 1 . . . Time 32 | . . . 32 . . . Parts Recycled 1 | . 1 . . . . . Recycled Matter . | . . . . . . . Retrieved Matter . | . . . . . . . Retrieved Components . | . . . . . . . Parts Scanalyzed 1 | . . . . . . 1 Part Schematics Acquired 1 | . . . . . . 1 Parts Damaged . | . . . . . . . Bothacking | -11 -10 -10 -9 -9 -8 -7 ------------ Run | Yrd Mat Min Mat Min Mat Fac Used RIF Installer . | . . . . . . . Robots Hacked . | . . . . . . . Non-combat . | . . . . . . . Combat . | . . . . . . . Robot Hacks Applied . | . . . . . . . Relay Couplers Released . | . . . . . . . Fabnet Peak Effective % . | . . . . . . . Robots Rewired . | . . . . . . . Allies Hacked . | . . . . . . . Hacks Repelled . | . . . . . . . Allies | -11 -10 -10 -9 -9 -8 -7 -------- Run | Yrd Mat Min Mat Min Mat Fac Total Allies 2 | . . . . 2 . . Largest Group 2 | . . . . 2 . . Highest-Rated Group 43 | . . . . 43 . . Highest-Rated Ally 31 | . . . . 31 . . Total Orders . | . . . . . . . Ally Attacks 14 | . . . . 14 . . Total Damage 194 | . . . . 194 . . Kills 5 | . . . . 5 . . Allies Corrupted . | . . . . . . . Allies Melted . | . . . . . . . Intel | -11 -10 -10 -9 -9 -8 -7 ------- Run | Yrd Mat Min Mat Min Mat Fac Robot Analysis Total . | . . . . . . . Derelict Logs Recovered 1 | . . . . 1 . . Drone Launches . | . . . . . . . Drone Recoveries . | . . . . . . . Exploration | -11 -10 -10 -9 -9 -8 -7 ------------- Run | Yrd Mat Min Mat Min Mat Fac Turns Passed 2773 | 66 810 41 463 276 663 454 Spaces Moved 2338 | 47 166 35 409 705 332 644 Core 151 | 7 . . . . . 144 Treads 3 | 3 . . . . . . Legs 247 | 37 154 35 . . . 21 Wheels . | . . . . . . . Hover . | . . . . . . . Flight 1937 | . 12 . 409 705 332 479 Fastest Speed 26 | 50 112 120 26 26 26 27 Average Speed 41 | 112 120 120 26 28 27 41 Slowest Speed 195 | 160 195 120 195 109 109 195 Overloaded Moves . | . . . . . . . Propulsion Burnouts . | . . . . . . . Robots Hopped 10 | . . . 1 1 2 6 Cave-ins Triggered . | . . . . . . . Exploration Rate (%) 31 | 4 25 18 33 88 30 20 Regions Visited 6 Branch Regions 2 Pre-discovered Areas . | . . . . . . . Known Exits Taken 1 | . . . . . 1 . Unknown Exits Taken 5 | 1 1 1 1 1 . . Scrap Searched 3 | . . 1 . 2 . . Spaces Dug . | . . . . . . . Terrain Destroyed . | . . . . . . . Melee . | . . . . . . . Projectile . | . . . . . . . AOE . | . . . . . . . Terrain Rammed . | . . . . . . . Walls Destroyed . | . . . . . . . Machines Disabled . | . . . . . . . Actions | -11 -10 -10 -9 -9 -8 -7 --------- Run | Yrd Mat Min Mat Min Mat Fac Total 4107 | 57 773 34 752 769 901 821 Wait 1634 | . 575 . 315 47 551 146 Move 2312 | 46 165 34 406 702 327 632 Hop 10 | . . . 1 1 2 6 Pick Up 23 | 1 11 . 3 4 3 1 Fast Attach 28 | 8 5 . 9 . 2 4 Attach 11 | . . . 2 2 3 4 Detach 10 | . 2 . 1 . 2 5 Swap 15 | . 5 . 2 2 5 1 Drop 32 | 2 8 . 9 3 6 4 Fire 12 | . 2 . 4 6 . . Melee . | . . . . . . . Ram 14 | . . . . 2 . 12 Kick 6 | . . . . . . 6 Crush . | . . . . . . . Escape Stasis . | . . . . . . . Rewire . | . . . . . . . Trap . | . . . . . . . Miscellaneous . | . . . . . . . Route ------- -11/Scrapyard -10/Materials -10/Mines -9/Materials -9/Mines -8/Materials -7/Factory History --------- Turn | Location | Event 5 | -11/Scrapyard | Discovered new exit (range 15) 67 | -11/Scrapyard | Entered Materials 315 | -10/Materials | Build established: Mutant 871 | -10/Materials | Discovered new exit (range 6) 877 | -10/Materials | Entered Mines 903 | -10/Mines | Found DCF Scrap (13 items) 910 | -10/Mines | Discovered new exit (range 8) 918 | -10/Mines | Entered Materials 918 | -9/Materials | Evolved 2 slots: Propulsion x2 1040 | -9/Materials | Repaired VTOL Module 1353 | -9/Materials | Build established: Sprinter 1373 | -9/Materials | Discovered new exit (range 16) 1381 | -9/Materials | Entered Mines 1533 | -9/Mines | Learned Materials stockpile data 1562 | -9/Mines | Joined a pair of Derelicts in attacking an 0b10 outpost 1644 | -9/Mines | Found a damaged Exp. Sensor Array with a note attached 1645 | -9/Mines | Found Prototype Device 1646 | -9/Mines | Identified Exp. Sensor Array 1656 | -9/Mines | Discovered new exit (range 6) 1657 | -9/Mines | Entered Materials 1657 | -8/Materials | Evolved 2 slots: Utility x2 2317 | -8/Materials | Discovered new exit (range 3) 2320 | -8/Materials | Identified exit to Factory 2320 | -8/Materials | Entered Factory 2320 | -7/Factory | Evolved 2 slots: Propulsion x1, Utility x1 2694 | -7/Factory | Lost 7 parts (1p4n2u) 2713 | -7/Factory | Core integrity fell below 50% 2722 | -7/Factory | System corruption reached 10% 2726 | -7/Factory | Core integrity fell below 20% 2755 | -7/Factory | Lost 3 parts (1n2u) 2774 | -7/Factory | Destroyed by P-60 Hacker with Shock Rifle Last Messages --------------- 02722_ Slug penetrates Wall. 02723_ Kicked G-47 Trooper. 02724_ Imp. Signal Interpreter destroyed. 02724_ System corrupted by crushing effect (+1). 02724_ Kicked G-47 Trooper out of the way. 02724_ Imp. Titanium Leg destroyed. 02725_ Slug penetrates Wall. 02727_ Slammed into G-47 Trooper. 02727_ Critical hit (Burn: +37). 02728_ Slug penetrates Wall. 02729_ Slammed into H-55 Commando. 02731_ Slug penetrates G-47 Trooper. 02738_ Door malfunctions. 02739_ U-05 Engineer repairs door. 02757_ K-01 Serf cleans the Nuclear Reactor. 02762_ System corrupted: Heat flow error (+114). 02769_ K-01 Serf cleans the Nuclear Reactor. 02773_ Acquired Proton Missile Launcher. Map ----- +----------------------------------------------------+ | ?????????????????????????????????????????????????? | | ?????????????????????????????????????????????????? | | ?????????????????????????????????????????????????? | | ?????????????????????????????????????????????????? | | ?????????????????????????????????????????????????? | | ?????????????????????????????????????????????????? | | ?????????????????????????????????????????????????? | | ?????????????????????????????????????????????????? | | ?????????????????????????????????????????????????? | | ?????????????????????????????????????????????????? | | ?????????????????????????????????????????????????? | | ?????????????????????????????????????????????????? | | ???????????????????????????????????????????????? | | ???????????????????????????????????????????????? | | ?????????????# ??????????????????????????????? | | ?????????????# ?????????????????????????????? | | ?????????????# ????????????????????????????? | | ?????????????# ???????????????????????????? | | ?????????????# ???????????????????????????? | | ?????????????# ??????????????????????????? | | ?????????????# ??? ??????????????????????? | | +############### ??? ????????##????????????? | | ###+#######T ####?????????? | | ????????? | | ????????? | | """ """ """ """ @ ????????? | | """ """ """ "Y" u ????????? | | """ """ """ ????????? | | k #######t######?????????? | | +###### """ """ """ """ #??????????????????????? | | ????# """ """ """ """ ###????????????????????? | | ! ????# """ """ """ """ ""#????????????????????? | | ???# k ""#????????????????????? | | ## """ """ """ """ T"#????????????????????? | | + ! """ """ """ """ ""#????????????????????? | | ## """ """ """ """ ""#????????????????????? | | ?# ###????????????????????? | | ?# p#??????????????????????? | | ##############+#####/#??????????????????????? | | #???????# #??????????????????????? | | #???????#] """ #??????????????????????? | | #???????# R" #??????????????????????? | | ????????# """ #??????????????????????? | | ??????????# """ #??????????????????????? | | ?????????????# """"" ! #??????????????????????? | | ?????????????# """"" ! #??????????????????????? | | ?????????????# #??????????????????????? | | ?????????????# """ #??????????????????????? | | ?????????????????""" #??????????????????????? | | ??????????????????"" #??????????????????????? | +----------------------------------------------------+ Best States ------------- Heat Dissipation 34 Energy Generation 14 Energy Capacity 265 Matter Stores 300 Matter Capacity 300 Sight Range 16 Robot Scan Range 20 Terrain Scan Density 10 Armor Coverage 150 Propulsion Shielding 33 Evasion (%) 64 Recoil Reduction 1 Item Schematics ----------------- Cesium-ion Thruster | -7/Factory | Scanalyzed Robot Schematics ------------------ None Fabricated ------------ Nothing Alien Tech Used ----------------- None Achievements -------------- None Challenges ------------ None Game ------ Seed HeartIntegratedTearclaws Manual? 0 Play Time 00:33:20 Cumulative 15.2 hours Start 2025.03.30 @ 14:22:17 End 2025.03.30 @ 14:54:14 Sessions 1 Manual Loads 0 Difficulty Rogue Special Mode None Game No. 27 Rogue 27 Adventurer 0 Explorer 0 Win Type - Total 0 Types 0/0/0/0/0/0/0/0/0 Lore% 12 Gallery% 24 Achievement% 17 Wizard Run 0 Options --------- Layout 1 ASCII 0 Keyboard 0 Movement Mouse Keybinds 0 Fullscreen 1 Font 24/Smallcaps Map View 50x35 Zoom Use 0% Tactical HUD 1 Map Filters NONE Filters NONE Steam 1 RUN: 88fe4945-c5ea-4ddd-9e0e-22e7bcda3077